lending/lending_fUSD_20260204
["ID","MTS","AMOUNT","RATE_DAILY","PERIOD"]
[404495654,1770217841784,-204.91953757,0.00014599,2]
[404495655,1770217841794,-557.1237229,0.00014599,2]
[404495656,1770217841803,-500.125501,0.000146,2]
[404495657,1770217841812,-501.93400582,0.000146,2]
[404495658,1770217841821,-500.0,0.000146,2]
[404495659,1770217841831,-500.0,0.000146,2]
[404495660,1770217841839,-177.77624062,0.000146,2]
[404495661,1770217841848,-500.0,0.000146,2]
[404495662,1770217841859,-500.0,0.000146,2]
[404495663,1770217841869,-607.15821099,0.000146,2]
[404495664,1770217841881,-500.0,0.000146,2]
[404495665,1770217841891,-500.0,0.000146,2]
[404495666,1770217841900,-500.0,0.000146,2]
[404495667,1770217841910,-500.0,0.000146,2]
[404495668,1770217841920,-500.0,0.000146,2]
[404495669,1770217841930,-500.0,0.000146,2]
[404495670,1770217841940,-500.0,0.000146,2]
[404495671,1770217841949,-500.0,0.000146,2]
[404495672,1770217841959,-166.87248025,0.000146,2]
[404495673,1770217841968,-500.45594481,0.000146,2]
[404495674,1770217841977,-500.0,0.000146,2]
[404495675,1770217841987,-166.45228342,0.000146,2]
[404495676,1770217841996,-217.7379574,0.000146,2]
[404495677,1770217842006,-500.0,0.000146,2]
[404495678,1770217842015,-169.73010745,0.000146,2]
[404495679,1770217842025,-500.0,0.000146,2]
[404495680,1770217842034,-500.0,0.000146,2]
[404495681,1770217842044,-500.0,0.000146,2]
[404495682,1770217842054,-500.0,0.000146,2]
[404495683,1770217842063,-503.53079739,0.000146,2]
[404495684,1770217842073,-500.0,0.000146,2]
[404495685,1770217842082,-500.48184602,0.000146,2]
[404495686,1770217842091,-500.0,0.000146,2]
[404495687,1770217842101,-500.0,0.000146,2]
[404495688,1770217842111,-500.0,0.000146,2]
[404495689,1770217842123,-500.0,0.000146,2]
[404495690,1770217842132,-500.0,0.000146,2]
[404495691,1770217842142,-500.0,0.000146,2]
[404495692,1770217842152,-500.0,0.000146,2]
[404495693,1770217842162,-500.0,0.000146,2]
[404495694,1770217842172,-249.76,0.00014618,2]
[404495695,1770217842181,-500.0,0.00014625,2]
[404495696,1770217842191,-151.0,0.00014634,2]
[404495697,1770217842200,-151.0,0.00014634,2]
[404495698,1770217842209,-151.0,0.00014634,2]
[404495699,1770217842219,-869.18,0.00014774,2]
[404495700,1770217842228,-856.21106481,0.00014785,2]
[404495701,1770217842238,-15163.0,0.00014795,2]
[404495702,1770217842247,-773.56,0.00014795,2]
[404495703,1770217842256,-5536.7235,0.000148,2]
[404495704,1770217842266,-250.0,0.00015,2]
[404495705,1770217842275,-869.18,0.00015048,2]
[404495706,1770217842284,-381.72,0.00015068,2]
[404495707,1770217842293,-307.02,0.00015068,2]
[404495708,1770217842302,-811.82184929,0.00015131,2]
[404495710,1770217842312,-1000.0,0.00015148,2]
[404495712,1770217842322,-1000.0,0.00015148,2]
[404495714,1770217842335,-1000.0,0.00015148,2]
[404495716,1770217842346,-1000.0,0.00015148,2]
[404495718,1770217842355,-1000.0,0.00015148,2]
[404495720,1770217842365,-1000.0,0.00015148,2]
[404495722,1770217842376,-1004.53493259,0.00015148,2]
[404495724,1770217842385,-1000.0,0.00015148,2]
[404495726,1770217842394,-1000.0,0.00015148,2]
[404495728,1770217842406,-446.05272837,0.00015148,2]
[404495729,1770217842415,-1000.0,0.00015148,2]
[404495730,1770217842424,-1000.0,0.00015148,2]
[404495731,1770217842433,-1000.0,0.00015148,2]
[404495732,1770217842442,-1000.0,0.00015148,2]
[404495733,1770217842452,-1000.0,0.00015148,2]
[404495734,1770217842462,-1000.0,0.00015148,2]
[404495735,1770217842471,-501.33584129,0.00015148,2]
[404495736,1770217842481,-1010.7037772,0.00015148,2]
[404495737,1770217842492,-614.32879488,0.00015148,2]
[404495738,1770217842502,-1000.0,0.00015148,2]
[404495739,1770217842511,-619.23689165,0.00015148,2]
[404495740,1770217842520,-616.68206911,0.00015148,2]
[404495741,1770217842529,-1000.0,0.00015148,2]
[404495742,1770217842539,-1000.0,0.00015148,2]
[404495743,1770217842549,-1000.0,0.00015148,2]
[404495744,1770217842558,-1600.0,0.00015159,2]
[404495745,1770217842567,-287.51,0.00015184,2]
[404495746,1770217842576,-600.0,0.00015232,2]
[404495747,1770217842586,-27605.33425562,0.00015233,2]
[404495748,1770217842596,-160.0,0.00015248,2]
[404495749,1770217842606,-3969.61,0.0001531,2]
[404495750,1770217842615,-9999.99,0.0001531,2]
[404495751,1770217842625,-9999.99,0.0001531,2]
[404495752,1770217842635,-150.99,0.0001531,2]
[404495753,1770217842645,-9999.99,0.0001531,2]
[404495754,1770217842654,-299.99,0.0001531,2]
[404495755,1770217842663,-1621.47,0.0001531,2]
[404495756,1770217842672,-19230.75,0.0001531,2]
[404495757,1770217842681,-9999.99,0.0001531,2]
[404495758,1770217842691,-249.76,0.00015314,2]
[404495759,1770217842699,-869.18,0.00015322,2]
[404495760,1770217842708,-152.38,0.00015326,2]
[404495761,1770217842717,-41343.5121634,0.00015336,2]
[404495762,1770217842726,-510.52,0.00015389,2]
[404495763,1770217842736,-322.6107,0.00015428,2]
[404495764,1770217842746,-174.61919141,0.00015428,2]
[404495765,1770217842755,-500.0,0.00015428,2]
[404495766,1770217842765,-721.12765535,0.00015428,2]
[404495767,1770217842774,-500.0,0.00015428,2]
[404495768,1770217842783,-500.0,0.00015428,2]
[404495769,1770217842793,-500.0,0.00015428,2]
[404495770,1770217842802,-500.0,0.00015428,2]
[404495771,1770217842811,-500.0,0.00015428,2]
[404495772,1770217842820,-500.0,0.00015428,2]
[404495773,1770217842830,-1428.38747117,0.00015428,2]
[404495774,1770217842839,-500.0,0.00015428,2]
[404495775,1770217842847,-500.0,0.00015428,2]
[404495776,1770217842857,-500.0,0.00015428,2]
[404495777,1770217842866,-277.35679052,0.00015428,2]
[404495778,1770217842877,-500.0,0.00015428,2]
[404495779,1770217842886,-209.40437684,0.00015428,2]
[404495780,1770217842896,-209.40437684,0.00015428,2]
[404495781,1770217842906,-578.20924308,0.00015428,2]
[404495782,1770217842915,-743.50770149,0.00015428,2]
[404495783,1770217842925,-233.05408281,0.00015428,2]
[404495784,1770217842934,-209.40437684,0.00015428,2]
[404495785,1770217842944,-217.15233878,0.00015483,2]
[404495786,1770217842953,-10091.57601831,0.00015489,2]
[404495787,1770217842963,-150.0,0.00015529,7]
[404495788,1770217842972,-160.068675,0.00015529,7]
[404495789,1770217842982,-170.13735,0.00015529,7]
[404495790,1770217842991,-180.206026,0.00015529,7]
[404495791,1770217843000,-190.274701,0.00015529,7]
[404495792,1770217843010,-200.343376,0.00015529,7]
[404495793,1770217843019,-210.412052,0.00015529,7]
[404495794,1770217843028,-220.480727,0.00015529,7]
[404495795,1770217843038,-230.549403,0.00015529,7]
[404495796,1770217843047,-240.618078,0.00015529,7]
[404495797,1770217843057,-225.18697532,0.00015538,2]
[404495798,1770217843067,-233.51889341,0.00015593,2]
[404495799,1770217843077,-869.18,0.00015596,2]
[404495800,1770217843087,-163.0,0.000156,2]
[404495801,1770217843096,-242.15909246,0.00015648,2]
[404495802,1770217843106,-1252.0,0.00015685,2]
[404495803,1770217843115,-680.05880229,0.00015696,2]
[404495804,1770217843127,-1500.0,0.00015696,2]
[404495805,1770217843137,-1541.38998131,0.00015696,2]
[404495806,1770217843147,-685.84619261,0.00015696,2]
[404495807,1770217843156,-1500.0,0.00015696,2]
[404495808,1770217843166,-1474.2543775,0.00015696,2]
[404495809,1770217843175,-1500.0,0.00015696,2]
[404495810,1770217843185,-1500.0,0.00015696,2]
[404495811,1770217843194,-1009.49329008,0.00015696,2]
[404495812,1770217843203,-408.34309823,0.00015696,2]
[404495813,1770217843212,-574.23696908,0.00015696,2]
[404495814,1770217843221,-1500.0,0.00015696,2]
[404495815,1770217843230,-1500.0,0.00015696,2]
[404495816,1770217843239,-1500.0,0.00015696,2]
[404495817,1770217843249,-1500.0,0.00015696,2]
[404495818,1770217843258,-1502.08630152,0.00015696,2]
[404495819,1770217843267,-1500.0,0.00015696,2]
[404495820,1770217843276,-505.05936484,0.00015696,2]
[404495821,1770217843286,-251.11897888,0.00015703,2]
[404495822,1770217843295,-307.02,0.00015753,2]
[404495823,1770217843304,-260.4103811,0.00015758,2]
[404495824,1770217843315,-10000.0,0.00015783,2]
[404495825,1770217843324,-2114.21,0.00015803,2]
[404495826,1770217843337,-270.0455652,0.00015813,2]
[404495827,1770217843346,-926.315,0.00015814,2]
[404495828,1770217843357,-1205.0,0.00015814,2]
[404495829,1770217843370,-314.65,0.00015815,2]
[404495830,1770217843379,-1852.42,0.00015815,2]
[404495831,1770217843388,-3253.0,0.00015817,2]
[404495832,1770217843398,-1317.0,0.00015817,2]
[404495833,1770217843409,-2476.46,0.00015817,2]
[404495834,1770217843418,-568.0,0.00015817,2]
[404495835,1770217843427,-811.82184929,0.00015823,2]
[404495836,1770217843437,-280.03725112,0.00015868,2]
[404495837,1770217843446,-233.59,0.0001587,2]
[404495838,1770217843455,-2139.60354195,0.00015882,2]
[404495839,1770217843464,-27605.33425562,0.000159,2]
[404495840,1770217843473,-200.0,0.00015918,2]
[404495841,1770217843483,-290.39862941,0.00015923,2]
[404495842,1770217843492,-150.0,0.00015942,7]
[404495843,1770217843502,-261.648666,0.00015942,7]
[404495844,1770217843511,-373.297332,0.00015942,7]
[404495845,1770217843520,-484.945999,0.00015942,7]
[404495846,1770217843530,-596.594665,0.00015942,7]
[404495847,1770217843539,-708.243332,0.00015942,7]
[404495848,1770217843548,-819.891998,0.00015942,7]
[404495850,1770217843558,-931.540664,0.00015942,7]
[404495852,1770217843568,-1043.189331,0.00015942,7]
[404495853,1770217843577,-1154.837997,0.00015942,7]
[404495854,1770217843586,-1000.0,0.00015953,2]
[404495855,1770217843597,-3992.56342833,0.0001596,2]
[404495856,1770217843606,-4609.0,0.0001597,2]
[404495857,1770217843616,-181.08010149,0.00015976,2]
[404495858,1770217843628,-1481.23780761,0.00015976,2]
[404495859,1770217843637,-168.90333538,0.00015976,2]
[404495860,1770217843647,-217.15233878,0.00015976,2]
[404495861,1770217843656,-217.15233878,0.00015976,2]
[404495862,1770217843666,-771.01748645,0.00015976,2]
[404495863,1770217843676,-301.1433787,0.00015978,2]
[404495864,1770217843686,-500.0,0.00015994,2]
[404495865,1770217843696,-249.76,0.0001601,2]
[404495866,1770217843705,-9999.99,0.00016116,2]
[404495867,1770217843715,-250.0,0.00016121,2]
[404495868,1770217843724,-213.0,0.00016121,2]
[404495869,1770217843733,-150.0,0.00016121,2]
[404495870,1770217843743,-150.0,0.00016121,2]
[404495871,1770217843752,-150.0,0.00016121,2]
[404495872,1770217843762,-150.0,0.00016121,2]
[404495873,1770217843771,-150.0,0.00016121,2]
[404495874,1770217843781,-150.0,0.00016121,2]
[404495875,1770217843790,-150.0,0.00016121,2]
[404495876,1770217843800,-150.0,0.00016121,2]
[404495877,1770217843809,-150.0,0.00016121,2]
[404495878,1770217843818,-150.0,0.00016121,2]
[404495879,1770217843828,-3482.0,0.00016121,2]
[404495880,1770217843837,-1335.0,0.00016121,2]
[404495881,1770217843846,-1410.0,0.00016121,2]
[404495882,1770217843855,-616.0,0.00016121,2]
[404495883,1770217843864,-150.0,0.00016121,2]
[404495884,1770217843876,-1271.0,0.00016121,2]
[404495885,1770217843886,-3000.0,0.000162,2]
[404495886,1770217843895,-2000.0,0.00016244,2]
[404495887,1770217843905,-1086.3781423,0.00016244,2]
[404495888,1770217843914,-457.13404908,0.00016244,2]
[404495889,1770217843924,-2000.0,0.00016244,2]
[404495890,1770217843933,-2000.0,0.00016244,2]
[404495891,1770217843942,-2000.0,0.00016244,2]
[404495892,1770217843952,-1006.1368265,0.00016244,2]
[404495893,1770217843961,-1500.0,0.00016244,2]
[404495894,1770217843971,-657.61677908,0.00016244,2]
[404495895,1770217844143,-200.0,0.00016368,2]
[404495896,1770217844153,-163.0,0.000164,2]
[404495897,1770217844162,-163.0,0.000164,2]
[404495898,1770217844171,-163.0,0.000164,2]
[404495899,1770217844181,-163.0,0.000164,2]
[404495900,1770217844191,-196.3623483,0.00016405,2]
[404495901,1770217844200,-307.02,0.00016438,2]
[404495902,1770217844209,-801.61808946,0.00016438,2]
[404495903,1770217844218,-287.51,0.00016446,2]
[404495904,1770217844227,-481.13476576,0.00016459,2]
[404495905,1770217844236,-482.95806398,0.00016459,2]
[404495906,1770217844245,-162.0,0.000165,2]
[404495907,1770217844254,-600.0,0.00016511,2]
[404495908,1770217844263,-300.0,0.00016515,2]
[404495909,1770217844273,-200.0,0.00016515,2]
[404495910,1770217844282,-811.82184929,0.00016516,2]
[404495911,1770217844291,-159.70170572,0.0001652,2]
[404495912,1770217844300,-187.78006525,0.00016524,2]
[404495913,1770217844309,-225.18697531,0.00016524,2]
[404495914,1770217844327,-225.18697531,0.00016524,2]
[404495915,1770217844337,-799.54513345,0.00016524,2]
[404495916,1770217844346,-1600.0,0.00016674,2]
[404495917,1770217844356,-249.76,0.00016706,2]
[404495918,1770217844366,-165.74,0.00016712,2]
[404495919,1770217844378,-1664.0,0.0001672,2]
[404495920,1770217844388,-839.0,0.0001672,2]
[404495921,1770217844397,-163.0,0.0001672,2]
[404495922,1770217844405,-163.0,0.0001672,2]
[404495923,1770217844415,-163.0,0.0001672,2]
[404495924,1770217844424,-2500.0,0.00016792,2]
[404495925,1770217844433,-2500.0,0.00016792,2]
[404495926,1770217844442,-2189.11468629,0.00016792,2]
[404495927,1770217844451,-2349.18395774,0.00016792,2]
[404495928,1770217844460,-334.5472959,0.00016797,2]
[404495929,1770217844469,-481.13476576,0.0001687,2]
[404495930,1770217844479,-482.95806398,0.0001687,2]
[404495931,1770217844488,-1089.64825227,0.00016954,2]
[404495932,1770217844497,-1330.04455105,0.00016972,2]
[404495933,1770217844506,-309.0,0.00016991,2]
[404495934,1770217844516,-5000.0,0.00017,2]
[404495935,1770217844525,-300.0,0.00017,2]
[404495936,1770217844534,-779.84142,0.00017,2]
[404495937,1770217844543,-309.0,0.00017009,2]
[404495938,1770217844552,-309.0,0.00017028,2]
[404495939,1770217844561,-839.0,0.0001704,2]
[404495940,1770217844570,-163.0,0.0001704,2]
[404495941,1770217844579,-163.0,0.0001704,2]
[404495942,1770217844589,-163.0,0.0001704,2]
[404495943,1770217844598,-309.0,0.00017054,2]
[404495944,1770217844607,-41343.5121634,0.00017054,2]
[404495945,1770217844617,-194.72792766,0.00017072,2]
[404495946,1770217844628,-829.12830338,0.00017072,2]
[404495947,1770217844637,-2000.0,0.000171,2]
[404495948,1770217844646,-200.0,0.00017112,2]
[404495949,1770217844656,-159.70170572,0.00017156,2]
[404495950,1770217844665,-309.0,0.00017162,2]
[404495951,1770217844674,-437.0,0.00017169,2]
[404495952,1770217844683,-791.94193595,0.00017199,2]
[404495953,1770217844693,-309.0,0.00017203,2]
[404495954,1770217844702,-1330.04455101,0.00017204,2]
[404495955,1770217844711,-811.82184929,0.00017208,2]
[404495956,1770217844720,-305.76203885,0.00017279,2]
[404495957,1770217844729,-481.13476576,0.00017281,2]
[404495958,1770217844738,-3000.0,0.0001734,2]
[404495959,1770217844747,-3000.0,0.0001734,2]
[404495960,1770217844756,-839.0,0.0001736,2]
[404495961,1770217844766,-2837.0,0.0001736,2]
[404495962,1770217844775,-163.0,0.0001736,2]
[404495963,1770217844784,-839.0,0.0001736,2]
[404495964,1770217844793,-163.0,0.0001736,2]
[404495965,1770217844803,-163.0,0.0001736,2]
[404495966,1770217844813,-163.0,0.0001736,2]
[404495967,1770217844822,-163.0,0.0001736,2]
[404495968,1770217844831,-163.0,0.0001736,2]
[404495969,1770217844841,-309.0,0.0001739,2]
[404495970,1770217844850,-2000.0,0.000174,2]
[404495971,1770217844859,-249.76,0.00017402,2]
[404495972,1770217844870,-20126.83775823,0.00017413,2]
[404495973,1770217844880,-309.0,0.00017419,2]
[404495974,1770217844890,-1330.04455101,0.00017436,2]
[404495975,1770217844900,-418.0,0.00017466,2]
[404495976,1770217844909,-2139.60354195,0.00017492,2]
[404495977,1770217844920,-309.0,0.0001753,2]
[404495978,1770217844931,-309.0,0.00017531,2]
[404495979,1770217844941,-436.0,0.00017567,2]
[404495980,1770217844950,-418.0,0.00017579,2]
[404495981,1770217844960,-309.0,0.00017616,2]
[404495982,1770217844969,-201.93286099,0.0001762,2]
[404495983,1770217844979,-859.80605061,0.0001762,2]
[404495984,1770217844988,-309.0,0.00017624,2]
[404495985,1770217844998,-4103.35212221,0.0001764,2]
[404495986,1770217845007,-839.0,0.0001768,2]
[404495987,1770217845017,-163.0,0.0001768,2]
[404495988,1770217845027,-839.0,0.0001768,2]
[404495989,1770217845037,-163.0,0.0001768,2]
[404495990,1770217845047,-481.13476576,0.00017693,2]
[404495991,1770217845056,-150.0,0.00017699,2]
[404495992,1770217845066,-150.0,0.00017699,2]
[404495993,1770217845077,-500.0,0.00017699,2]
[404495994,1770217845086,-150.0,0.00017699,2]
[404495995,1770217845097,-150.0,0.00017699,2]
[404495996,1770217845107,-1475.0,0.00017699,2]
[404495997,1770217845117,-150.0,0.00017699,2]
[404495998,1770217845135,-150.0,0.00017699,2]
[404495999,1770217845145,-2685.0,0.00017699,2]
[404496000,1770217845155,-154.11430393,0.00017699,2]
[404496001,1770217845165,-200.0,0.00017699,2]
[404496002,1770217845174,-500.0,0.00017699,2]
[404496003,1770217845184,-500.0,0.00017699,2]
[404496004,1770217845194,-250.0,0.00017699,2]
[404496005,1770217845204,-150.4373073,0.00017699,2]
[404496006,1770217845213,-500.0,0.00017699,2]
[404496007,1770217845222,-150.0,0.00017699,2]
[404496008,1770217845232,-500.0,0.00017699,2]
[404496009,1770217845242,-500.0,0.00017699,2]
[404496010,1770217845252,-500.0,0.00017699,2]
[404496011,1770217845262,-500.0,0.00017699,2]
[404496012,1770217845271,-500.0,0.00017699,2]
[404496013,1770217845281,-150.0,0.00017699,2]
[404496014,1770217845291,-500.0,0.00017699,2]
[404496015,1770217845301,-150.0,0.00017699,2]
[404496017,1770217845311,-150.0,0.00017699,2]
[404496018,1770217845323,-500.0,0.00017699,2]
[404496019,1770217845333,-500.0,0.00017699,2]
[404496020,1770217845343,-150.0,0.00017699,2]
[404496021,1770217845352,-166.17842172,0.00017699,2]
[404496022,1770217845362,-150.0,0.00017699,2]
[404496023,1770217845375,-500.0,0.00017699,2]
[404496024,1770217845385,-500.0,0.00017699,2]
[404496025,1770217845395,-150.0,0.00017699,2]
[404496026,1770217845406,-150.0,0.00017699,2]
[404496027,1770217845416,-500.0,0.00017699,2]
[404496028,1770217845426,-150.0,0.00017699,2]
[404496029,1770217845435,-2000.0,0.000177,2]
[404496030,1770217845445,-418.0,0.00017701,2]
[404496031,1770217845455,-200.0,0.00017709,2]
[404496032,1770217845464,-2304.23322328,0.00017734,2]
[404496033,1770217845474,-418.0,0.0001774,2]
[404496034,1770217845483,-159.73,0.00017747,2]
[404496035,1770217845493,-418.0,0.00017748,2]
[404496036,1770217845503,-151.0,0.00017751,2]
[404496037,1770217845513,-150.0,0.00017754,2]
[404496038,1770217845523,-500.0,0.00017754,2]
[404496039,1770217845533,-150.0,0.00017754,2]
[404496040,1770217845542,-150.0,0.00017754,2]
[404496041,1770217845552,-150.0,0.00017754,2]
[404496043,1770217845562,-1475.0,0.00017754,2]
[404496044,1770217845572,-150.0,0.00017754,2]
[404496046,1770217845581,-150.0,0.00017754,2]
[404496048,1770217845591,-2685.0,0.00017754,2]
[404496049,1770217845602,-500.0,0.00017754,2]
[404496050,1770217845611,-500.0,0.00017754,2]
[404496051,1770217845625,-500.0,0.00017754,2]
[404496052,1770217845636,-150.0,0.00017754,2]
[404496054,1770217845645,-500.0,0.00017754,2]
[404496057,1770217845656,-500.0,0.00017754,2]
[404496059,1770217845666,-500.0,0.00017754,2]
[404496061,1770217845676,-500.0,0.00017754,2]
[404496063,1770217845686,-500.0,0.00017754,2]
[404496065,1770217845696,-150.0,0.00017754,2]
[404496067,1770217845706,-500.0,0.00017754,2]
[404496069,1770217845715,-150.54146631,0.00017754,2]
[404496071,1770217845725,-150.0,0.00017754,2]
[404496072,1770217845735,-500.0,0.00017754,2]
[404496073,1770217845745,-500.0,0.00017754,2]
[404496074,1770217845755,-150.0,0.00017754,2]
[404496075,1770217845765,-500.0,0.00017754,2]
[404496076,1770217845775,-500.0,0.00017754,2]
[404496077,1770217845785,-150.0,0.00017754,2]
[404496079,1770217845794,-500.0,0.00017754,2]
[404496081,1770217845805,-309.0,0.0001776,2]
[404496082,1770217845814,-2304.23322325,0.00017762,2]
[404496083,1770217845824,-309.0,0.00017762,2]
[404496084,1770217845833,-159.73,0.00017786,2]
[404496085,1770217845843,-345.0,0.00017789,2]
[404496086,1770217845852,-2304.23322325,0.00017789,2]
[404496087,1770217845862,-159.70170572,0.00017791,2]
[404496088,1770217845875,-418.0,0.00017808,2]
[404496089,1770217845884,-250.0,0.00017808,5]
[404496090,1770217845894,-250.0,0.00017808,5]
[404496091,1770217845904,-250.0,0.00017808,5]
[404496092,1770217845914,-250.0,0.00017808,5]
[404496093,1770217845923,-250.0,0.00017808,5]
[404496094,1770217845933,-250.0,0.00017808,5]
[404496095,1770217845943,-250.0,0.00017808,5]
[404496096,1770217845953,-250.0,0.00017808,5]
[404496097,1770217845962,-215.60722138,0.00017809,2]
[404496098,1770217845972,-500.0,0.00017809,2]
[404496099,1770217845981,-150.0,0.00017809,2]
[404496100,1770217845991,-155.36591009,0.00017809,2]
[404496101,1770217846000,-150.0,0.00017809,2]
[404496102,1770217846010,-1475.0,0.00017809,2]
[404496103,1770217846019,-150.0,0.00017809,2]
[404496104,1770217846029,-2685.0,0.00017809,2]
[404496105,1770217846038,-500.0,0.00017809,2]
[404496106,1770217846048,-500.0,0.00017809,2]
[404496107,1770217846057,-150.0,0.00017809,2]
[404496108,1770217846066,-150.0,0.00017809,2]
[404496109,1770217846076,-500.0,0.00017809,2]
[404496110,1770217846085,-500.0,0.00017809,2]
[404496111,1770217846095,-500.0,0.00017809,2]
[404496112,1770217846105,-548.08731584,0.00017809,2]
[404496113,1770217846115,-150.0,0.00017809,2]
[404496114,1770217846128,-569.21162373,0.00017809,2]
[404496115,1770217846137,-500.0,0.00017809,2]
[404496116,1770217846147,-200.0,0.00017809,2]
[404496117,1770217846157,-184.0,0.00017809,2]
[404496118,1770217846167,-150.0,0.00017809,2]
[404496119,1770217846177,-150.0,0.00017809,2]
[404496120,1770217846186,-418.0,0.00017809,2]
[404496121,1770217846196,-500.0,0.00017809,2]
[404496122,1770217846206,-2304.23322325,0.00017817,2]
[404496123,1770217846216,-2000.0,0.0001782,2]
[404496124,1770217846226,-2000.0,0.0001782,2]
[404496125,1770217846235,-469.93,0.00017823,2]
[404496126,1770217846244,-159.73,0.00017825,2]
[404496127,1770217846253,-309.0,0.00017827,2]
[404496128,1770217846263,-300.0,0.00017829,2]
[404496129,1770217846272,-309.0,0.00017834,2]
[404496130,1770217846281,-2304.23322325,0.00017845,2]
[404496131,1770217846291,-469.93,0.00017854,2]
[404496132,1770217846300,-200.0,0.00017855,2]
[404496133,1770217846310,-200.0,0.00017857,2]
[404496134,1770217846320,-418.0,0.00017863,2]
[404496135,1770217846330,-158.43558998,0.00017863,2]
[404496136,1770217846340,-235.58915604,0.00017863,2]
[404496137,1770217846350,-150.0,0.00017863,2]
[404496138,1770217846361,-1475.0,0.00017863,2]
[404496139,1770217846371,-150.0,0.00017863,2]
[404496140,1770217846382,-2685.0,0.00017863,2]
[404496141,1770217846391,-500.0,0.00017863,2]
[404496142,1770217846403,-179.32668848,0.00017863,2]
[404496143,1770217846413,-500.0,0.00017863,2]
[404496144,1770217846423,-500.0,0.00017863,2]
[404496145,1770217846432,-500.0,0.00017863,2]
[404496146,1770217846442,-169.35603716,0.00017863,2]
[404496147,1770217846451,-215.61991293,0.00017863,2]
[404496148,1770217846460,-150.0,0.00017863,2]
[404496149,1770217846469,-150.0,0.00017863,2]
[404496150,1770217846478,-500.0,0.00017863,2]
[404496151,1770217846487,-2304.23322325,0.00017872,2]
[404496152,1770217846497,-469.93,0.00017886,2]
[404496153,1770217846506,-3500.0,0.00017888,2]
[404496154,1770217846515,-3500.0,0.00017888,2]
[404496155,1770217846525,-463.60371752,0.0001789,2]
[404496156,1770217846534,-309.0,0.00017896,2]
[404496157,1770217846543,-300.0,0.00017899,2]
[404496158,1770217846553,-300.0,0.00017899,2]
[404496159,1770217846563,-1000.0,0.00017899,2]
[404496160,1770217846572,-5000.0,0.000179,2]
[404496161,1770217846581,-10142.1213,0.000179,2]
[404496162,1770217846591,-17317.0235266,0.000179,3]
[404496163,1770217846600,-160.0,0.000179,3]
[404496164,1770217846610,-25000.0,0.000179,3]
[404496165,1770217846621,-25000.0,0.000179,3]
[404496166,1770217846630,-2304.23322325,0.000179,2]
[404496167,1770217846640,-856.21106481,0.000179,2]
[404496168,1770217846650,-811.82184929,0.000179,2]
[404496169,1770217846659,-961.11442286,0.000179,2]
[404496170,1770217846669,-172.48206623,0.000179,3]
[404496171,1770217846679,-12594.02537653,0.000179,2]
[404496172,1770217846688,-480.98114527,0.000179,2]
[404496173,1770217846697,-6549.20447998,0.000179,2]
[404496174,1770217846707,-418.0,0.00017918,2]
[404496175,1770217846717,-207.33206215,0.00017918,2]
[404496176,1770217846726,-1475.0,0.00017918,2]
[404496177,1770217846735,-150.0,0.00017918,2]
[404496178,1770217846745,-2685.0,0.00017918,2]
[404496179,1770217846754,-500.0,0.00017918,2]
[404496180,1770217846764,-500.0,0.00017918,2]
[404496181,1770217846774,-500.0,0.00017918,2]